[Event "Pervenstvo PFO 2023_Y19_Rapid"]
[Site "Samara region, Russia"]
[Date "2023.11.11"]
[Round "6.2"]
[White "Konstantinov, Nikita"]
[Black "Galyaviev, Samat"]
[Result "1/2-1/2"]
[TimeControl "10:5"]
[WhiteFideId "44165250"]
[BlackFideId "44168470"]
[WhiteElo "2074"]
[BlackElo "2030"]

1. e4 {[%clk 00:10:08]} {[%emt 00:00:02]} e6 {[%clk 00:10:10]} 2. d4 {[%clk
00:10:12]} d5 {[%clk 00:10:13]} {[%emt 00:00:01]} 3. Nd2 {[%clk 00:10:13]}
{[%emt 00:00:05]} c5 {[%clk 00:10:17]} {[%emt 00:00:01]} 4. exd5 {[%clk
00:10:12]} {[%emt 00:00:06]} exd5 {[%clk 00:10:21]} {[%emt 00:00:01]} 5. Ngf3
{[%clk 00:10:15]} {[%emt 00:00:02]} Nf6 {[%clk 00:10:25]} 6. Bb5+ {[%clk
00:10:17]} {[%emt 00:00:03]} Bd7 {[%clk 00:10:29]} {[%emt 00:00:02]} 7. Bxd7+
{[%clk 00:10:20]} {[%emt 00:00:02]} Nbxd7 {[%clk 00:10:33]} 8. O-O {[%clk
00:10:24]} {[%emt 00:00:02]} Be7 {[%clk 00:10:28]} {[%emt 00:00:10]} 9. dxc5
{[%clk 00:10:26]} {[%emt 00:00:03]} Nxc5 {[%clk 00:10:30]} {[%emt 00:00:03]} 10.
Nb3 {[%clk 00:10:28]} {[%emt 00:00:02]} Nce4 {[%clk 00:10:34]} {[%emt
00:00:01]} 11. Nbd4 {[%clk 00:10:24]} {[%emt 00:00:10]} O-O {[%clk 00:10:35]}
{[%emt 00:00:03]} 12. c3 {[%clk 00:10:19]} {[%emt 00:00:11]} Re8 {[%clk
00:10:20]} {[%emt 00:00:19]} 13. Nf5 {[%clk 00:09:46]} {[%emt 00:00:38]} Bf8
{[%clk 00:10:18]} {[%emt 00:00:08]} 14. Be3 {[%clk 00:09:35]} {[%emt 00:00:15]}
Qd7 {[%clk 00:09:38]} {[%emt 00:00:46]} 15. N5d4 {[%clk 00:08:55]} {[%emt
00:00:45]} Bd6 {[%clk 00:09:13]} {[%emt 00:00:29]} 16. Qc1 {[%clk 00:08:43]}
{[%emt 00:00:17]} a6 {[%clk 00:08:22]} {[%emt 00:00:56]} 17. Bf4 {[%clk
00:08:25]} {[%emt 00:00:23]} Bc5 {[%clk 00:08:26]} {[%emt 00:00:02]} 18. Qc2
{[%clk 00:07:34]} {[%emt 00:00:55]} Rac8 {[%clk 00:08:10]} {[%emt 00:00:21]} 19.
Rad1 {[%clk 00:07:34]} {[%emt 00:00:05]} Qg4 {[%clk 00:07:53]} {[%emt
00:00:22]} 20. Qc1 {[%clk 00:07:06]} {[%emt 00:00:33]} b5 {[%clk 00:07:37]}
{[%emt 00:00:21]} 21. a3 {[%clk 00:06:16]} {[%emt 00:00:55]} Qd7 {[%clk
00:07:20]} {[%emt 00:00:22]} 22. h3 {[%clk 00:04:53]} {[%emt 00:01:28]} h6
{[%clk 00:07:21]} {[%emt 00:00:04]} 23. Be3 {[%clk 00:04:38]} {[%emt 00:00:20]}
Bd6 {[%clk 00:06:58]} {[%emt 00:00:28]} 24. Bf4 {[%clk 00:04:40]} {[%emt
00:00:02]} Bc5 {[%clk 00:07:02]} {[%emt 00:00:02]} 25. Ne5 {[%clk 00:04:01]}
{[%emt 00:00:43]} Qa7 {[%clk 00:06:40]} {[%emt 00:00:27]} 26. Nef3 {[%clk
00:03:34]} {[%emt 00:00:33]} Qb6 {[%clk 00:06:09]} {[%emt 00:00:37]} 27. Qc2
{[%clk 00:03:10]} {[%emt 00:00:29]} a5 {[%clk 00:06:04]} {[%emt 00:00:09]} 28.
Nb3 {[%clk 00:03:04]} {[%emt 00:00:10]} b4 {[%clk 00:05:16]} {[%emt 00:00:54]}
29. axb4 {[%clk 00:02:57]} {[%emt 00:00:12]} axb4 {[%clk 00:05:19]} {[%emt
00:00:02]} 30. Nxc5 {[%clk 00:02:38]} {[%emt 00:00:24]} Qxc5 {[%clk 00:05:23]}
31. Be5 {[%clk 00:01:32]} {[%emt 00:01:11]} bxc3 {[%clk 00:05:23]} {[%emt
00:00:06]} 32. bxc3 {[%clk 00:01:36]} Qc4 {[%clk 00:05:01]} {[%emt 00:00:26]}
33. Rc1 {[%clk 00:01:00]} {[%emt 00:00:42]} Ng5 {[%clk 00:03:40]} {[%emt
00:01:26]} 34. Bxf6 {[%clk 00:00:46]} {[%emt 00:00:18]} Nxf3+ {[%clk 00:03:42]}
{[%emt 00:00:04]} 35. gxf3 {[%clk 00:00:50]} {[%emt 00:00:01]} gxf6 {[%clk
00:03:46]} {[%emt 00:00:01]} 36. Kh1 {[%clk 00:00:30]} {[%emt 00:00:25]} Qf4
{[%clk 00:03:18]} {[%emt 00:00:33]} 37. Rg1+ {[%clk 00:00:34]} Kh8 {[%clk
00:03:21]} {[%emt 00:00:02]} 38. Qd3 {[%clk 00:00:35]} {[%emt 00:00:04]} Re5
{[%clk 00:02:28]} {[%emt 00:00:58]} 39. Rcd1 {[%clk 00:00:34]} {[%emt
00:00:06]} Qf5 {[%clk 00:01:52]} {[%emt 00:00:42]} 40. Qxf5 {[%clk 00:00:12]}
{[%emt 00:00:26]} Rxf5 {[%clk 00:01:56]} 41. Rd3 {[%clk 00:00:15]} {[%emt
00:00:02]} Rg5 {[%clk 00:01:40]} {[%emt 00:00:21]} 42. Rg4 {[%clk 00:00:13]}
{[%emt 00:00:08]} Rcg8 {[%clk 00:01:21]} {[%emt 00:00:25]} 43. Kh2 {[%clk
00:00:09]} {[%emt 00:00:09]} Kh7 {[%clk 00:01:01]} {[%emt 00:00:25]} 44. Kg3
{[%clk 00:00:08]} {[%emt 00:00:06]} Rc8 {[%clk 00:00:51]} {[%emt 00:00:15]} 45.
h4 {[%clk 00:00:09]} {[%emt 00:00:05]} Re5 {[%clk 00:00:47]} {[%emt 00:00:08]}
46. Kg2 {[%clk 00:00:08]} {[%emt 00:00:05]} h5 {[%clk 00:00:41]} {[%emt
00:00:12]} 47. Rg3 {[%clk 00:00:09]} {[%emt 00:00:04]} Rf5 {[%clk 00:00:35]}
{[%emt 00:00:10]} 48. Kh3 {[%clk 00:00:10]} {[%emt 00:00:04]} Rc4 {[%clk
00:00:31]} {[%emt 00:00:09]} 49. Re3 {[%clk 00:00:10]} {[%emt 00:00:05]} Re5
{[%clk 00:00:26]} {[%emt 00:00:09]} 50. Rd3 {[%clk 00:00:09]} {[%emt 00:00:06]}
Rf5 {[%clk 00:00:22]} {[%emt 00:00:09]} 51. Re3 {[%clk 00:00:13]} {[%emt
00:00:02]} Re5 {[%clk 00:00:21]} {[%emt 00:00:06]} 1/2-1/2

[Event "Pervenstvo PFO 2023_Y19_Rapid"]
[Site "Samara region, Russia"]
[Date "2023.11.11"]
[Round "6.3"]
[White "Tarasenko, Iaroslav"]
[Black "Mochalov, Dmitriy"]
[Result "1/2-1/2"]
[TimeControl "10:5"]
[WhiteFideId "44196008"]
[BlackFideId "44179634"]
[WhiteElo "2080"]
[BlackElo "2194"]

1. e4 {[%clk 00:10:07]} {[%emt 00:00:03]} e5 {[%clk 00:10:09]} {[%emt
00:00:01]} 2. Nf3 {[%clk 00:10:10]} {[%emt 00:00:02]} Nc6 {[%clk 00:10:12]}
{[%emt 00:00:02]} 3. Bb5 {[%clk 00:10:07]} {[%emt 00:00:09]} a6 {[%clk
00:10:16]} {[%emt 00:00:01]} 4. Bxc6 {[%clk 00:10:09]} {[%emt 00:00:02]} dxc6
{[%clk 00:10:20]} 5. O-O {[%clk 00:10:13]} {[%emt 00:00:01]} Bd6 {[%clk
00:10:25]} 6. d4 {[%clk 00:10:16]} {[%emt 00:00:03]} exd4 {[%clk 00:10:26]}
{[%emt 00:00:03]} 7. Qxd4 {[%clk 00:10:20]} f6 {[%clk 00:10:28]} {[%emt
00:00:05]} 8. Be3 {[%clk 00:10:25]} Ne7 {[%clk 00:10:19]} {[%emt 00:00:14]} 9.
Nbd2 {[%clk 00:10:28]} Be6 {[%clk 00:10:02]} {[%emt 00:00:22]} 10. Nb3 {[%clk
00:10:20]} {[%emt 00:00:13]} b6 {[%clk 00:09:49]} {[%emt 00:00:19]} 11. Rad1
{[%clk 00:09:49]} {[%emt 00:00:36]} c5 {[%clk 00:09:49]} {[%emt 00:00:05]} 12.
Qc3 {[%clk 00:09:44]} {[%emt 00:00:09]} Qc8 {[%clk 00:09:44]} {[%emt 00:00:10]}
13. Nbd2 {[%clk 00:09:42]} {[%emt 00:00:08]} Nc6 {[%clk 00:08:58]} {[%emt
00:00:51]} 14. Nc4 {[%clk 00:09:37]} {[%emt 00:00:10]} Be7 {[%clk 00:09:00]}
{[%emt 00:00:02]} 15. Bf4 {[%clk 00:09:27]} {[%emt 00:00:15]} O-O {[%clk
00:08:56]} {[%emt 00:00:09]} 16. Ne3 {[%clk 00:09:29]} {[%emt 00:00:03]} Qb7
{[%clk 00:08:03]} {[%emt 00:00:59]} 17. Nd5 {[%clk 00:08:58]} {[%emt 00:00:36]}
Bd6 {[%clk 00:07:33]} {[%emt 00:00:35]} 18. Bxd6 {[%clk 00:08:38]} {[%emt
00:00:25]} cxd6 {[%clk 00:07:36]} {[%emt 00:00:01]} 19. Nf4 {[%clk 00:08:22]}
{[%emt 00:00:22]} Qe7 {[%clk 00:07:33]} {[%emt 00:00:08]} 20. Nxe6 {[%clk
00:07:03]} {[%emt 00:01:23]} Qxe6 {[%clk 00:07:37]} {[%emt 00:00:02]} 21. Qd3
{[%clk 00:06:23]} {[%emt 00:00:44]} Rfd8 {[%clk 00:06:56]} {[%emt 00:00:46]} 22.
Qd5 {[%clk 00:05:06]} {[%emt 00:01:22]} Qxd5 {[%clk 00:07:00]} {[%emt
00:00:02]} 23. Rxd5 {[%clk 00:05:10]} Ne7 {[%clk 00:06:55]} {[%emt 00:00:09]}
24. Rd2 {[%clk 00:05:04]} {[%emt 00:00:11]} 1/2-1/2

[Event "Pervenstvo PFO 2023_Y19_Rapid"]
[Site "Samara region, Russia"]
[Date "2023.11.11"]
[Round "6.4"]
[White "Kunakkuzin, Rinat"]
[Black "Ivanov, Matvei"]
[Result "0-1"]
[TimeControl "10:5"]
[WhiteFideId "54126584"]
[BlackFideId "54131987"]
[WhiteElo "1925"]
[BlackElo "1918"]

1. d4 {[%clk 00:10:05]} {[%emt 00:00:03]} Nf6 {[%clk 00:10:09]} {[%emt
00:00:01]} 2. g3 {[%clk 00:10:09]} g6 {[%clk 00:10:13]} {[%emt 00:00:02]} 3.
Bg2 {[%clk 00:10:13]} d5 {[%clk 00:10:18]} 4. Nf3 {[%clk 00:10:13]} {[%emt
00:00:06]} Bg7 {[%clk 00:10:22]} 5. O-O {[%clk 00:10:15]} {[%emt 00:00:03]} O-O
{[%clk 00:10:25]} {[%emt 00:00:02]} 6. c4 {[%clk 00:10:18]} {[%emt 00:00:02]}
c6 {[%clk 00:10:30]} 7. b3 {[%clk 00:10:20]} {[%emt 00:00:03]} dxc4 {[%clk
00:10:30]} {[%emt 00:00:05]} 8. bxc4 {[%clk 00:10:24]} {[%emt 00:00:01]} c5
{[%clk 00:10:34]} 9. e3 {[%clk 00:10:21]} {[%emt 00:00:08]} Qc7 {[%clk
00:10:07]} {[%emt 00:00:32]} 10. Ne5 {[%clk 00:09:52]} {[%emt 00:00:33]} Nbd7
{[%clk 00:09:14]} {[%emt 00:00:58]} 11. Nxd7 {[%clk 00:09:32]} {[%emt
00:00:26]} Bxd7 {[%clk 00:09:16]} {[%emt 00:00:03]} 12. Na3 {[%clk 00:09:30]}
{[%emt 00:00:07]} cxd4 {[%clk 00:09:00]} {[%emt 00:00:21]} 13. exd4 {[%clk
00:09:30]} {[%emt 00:00:05]} Bf5 {[%clk 00:08:12]} {[%emt 00:00:53]} 14. Bf4
{[%clk 00:09:18]} {[%emt 00:00:17]} Qd7 {[%clk 00:08:15]} {[%emt 00:00:02]} 15.
Rc1 {[%clk 00:09:02]} {[%emt 00:00:21]} Rfd8 {[%clk 00:07:53]} {[%emt
00:00:26]} 16. d5 {[%clk 00:08:09]} {[%emt 00:00:58]} Nh5 {[%clk 00:07:50]}
{[%emt 00:00:09]} 17. Be3 {[%clk 00:07:54]} {[%emt 00:00:21]} Bb2 {[%clk
00:07:46]} {[%emt 00:00:09]} 18. Nb5 {[%clk 00:07:57]} {[%emt 00:00:02]} Bxc1
{[%clk 00:07:43]} {[%emt 00:00:08]} 19. Qxc1 {[%clk 00:08:01]} a6 {[%clk
00:07:33]} {[%emt 00:00:15]} 20. Nd4 {[%clk 00:08:01]} {[%emt 00:00:04]} Bh3
{[%clk 00:07:33]} {[%emt 00:00:06]} 21. Bg5 {[%clk 00:07:23]} {[%emt 00:00:43]}
Bxg2 {[%clk 00:07:35]} {[%emt 00:00:03]} 22. Kxg2 {[%clk 00:07:26]} {[%emt
00:00:01]} b5 {[%clk 00:07:30]} {[%emt 00:00:11]} 23. Nc6 {[%clk 00:07:13]}
{[%emt 00:00:18]} Re8 {[%clk 00:07:12]} {[%emt 00:00:22]} 24. Re1 {[%clk
00:07:12]} {[%emt 00:00:06]} e6 {[%clk 00:07:14]} {[%emt 00:00:04]} 25. cxb5
{[%clk 00:06:34]} {[%emt 00:00:43]} Qxd5+ {[%clk 00:06:53]} {[%emt 00:00:26]}
26. Kg1 {[%clk 00:06:38]} f6 {[%clk 00:06:22]} {[%emt 00:00:36]} 27. Bh6 {[%clk
00:06:12]} {[%emt 00:00:31]} Qxb5 {[%clk 00:05:16]} {[%emt 00:01:11]} 28. g4
{[%clk 00:05:51]} {[%emt 00:00:25]} Ng7 {[%clk 00:05:00]} {[%emt 00:00:22]} 29.
Nd4 {[%clk 00:04:58]} {[%emt 00:00:57]} Qd7 {[%clk 00:03:56]} {[%emt 00:01:09]}
30. Rd1 {[%clk 00:04:28]} {[%emt 00:00:36]} Rad8 {[%clk 00:03:33]} {[%emt
00:00:27]} 31. Rd2 {[%clk 00:04:12]} {[%emt 00:00:21]} g5 {[%clk 00:02:55]}
{[%emt 00:00:43]} 32. Bxg7 {[%clk 00:03:13]} {[%emt 00:01:04]} Rc8 {[%clk
00:00:44]} {[%emt 00:02:17]} 33. Qa3 {[%clk 00:01:56]} {[%emt 00:01:23]} Qxg7
{[%clk 00:00:44]} {[%emt 00:00:06]} 34. Qxa6 {[%clk 00:01:55]} {[%emt
00:00:05]} Qf7 {[%clk 00:00:17]} {[%emt 00:00:31]} 35. Re2 {[%clk 00:01:53]}
{[%emt 00:00:08]} Rb8 {[%clk 00:00:11]} {[%emt 00:00:11]} 36. Rxe6 {[%clk
00:00:56]} {[%emt 00:01:02]} Rxe6 {[%clk 00:00:13]} {[%emt 00:00:03]} 37. Nxe6
{[%clk 00:00:32]} {[%emt 00:00:29]} Rb1+ {[%clk 00:00:16]} {[%emt 00:00:01]} 38.
Kg2 {[%clk 00:00:36]} {[%emt 00:00:02]} Qb7+ {[%clk 00:00:18]} {[%emt
00:00:03]} 39. Qxb7 Rxb7 {[%clk 00:00:22]} 40. Nd4 {[%clk 00:00:26]} {[%emt
00:00:13]} Ra7 {[%clk 00:00:21]} {[%emt 00:00:06]} 41. Nf5 {[%clk 00:00:26]}
{[%emt 00:00:05]} Rxa2 {[%clk 00:00:20]} {[%emt 00:00:07]} 42. h3 {[%clk
00:00:28]} {[%emt 00:00:02]} Kf7 {[%clk 00:00:20]} {[%emt 00:00:05]} 43. Ng3
{[%clk 00:00:31]} {[%emt 00:00:02]} Ke6 {[%clk 00:00:17]} {[%emt 00:00:08]} 44.
Nf5 {[%clk 00:00:31]} {[%emt 00:00:05]} Ke5 {[%clk 00:00:19]} {[%emt 00:00:02]}
45. Kf3 {[%clk 00:00:30]} {[%emt 00:00:06]} Ra3+ {[%clk 00:00:20]} {[%emt
00:00:04]} 46. Kg2 {[%clk 00:00:33]} {[%emt 00:00:01]} Rc3 {[%clk 00:00:21]}
{[%emt 00:00:04]} 47. Ng3 {[%clk 00:00:25]} {[%emt 00:00:14]} Ra3 {[%clk
00:00:22]} {[%emt 00:00:04]} 48. Nf5 {[%clk 00:00:19]} {[%emt 00:00:10]} h5
{[%clk 00:00:24]} {[%emt 00:00:03]} 49. Ng7 {[%clk 00:00:13]} {[%emt 00:00:11]}
hxg4 {[%clk 00:00:11]} {[%emt 00:00:19]} 50. hxg4 {[%clk 00:00:15]} {[%emt
00:00:03]} Ra7 {[%clk 00:00:13]} {[%emt 00:00:03]} 51. Nf5 {[%clk 00:00:17]}
{[%emt 00:00:02]} Kf4 {[%clk 00:00:14]} {[%emt 00:00:05]} 52. Ne3 {[%clk
00:00:17]} {[%emt 00:00:05]} Rd7 {[%clk 00:00:12]} {[%emt 00:00:06]} 53. Kg1
{[%clk 00:00:07]} {[%emt 00:00:15]} Kf3 {[%clk 00:00:14]} {[%emt 00:00:02]} 54.
Kf1 {[%clk 00:00:11]} {[%emt 00:00:02]} Ra7 {[%clk 00:00:11]} {[%emt 00:00:09]}
55. Kg1 {[%clk 00:00:11]} {[%emt 00:00:05]} Ra1+ {[%clk 00:00:13]} {[%emt
00:00:03]} 56. Kh2 {[%clk 00:00:14]} {[%emt 00:00:02]} Kxf2 {[%clk 00:00:15]}
{[%emt 00:00:03]} 57. Nd5 {[%clk 00:00:18]} {[%emt 00:00:01]} Ra6 {[%clk
00:00:16]} {[%emt 00:00:04]} 58. Kh3 {[%clk 00:00:15]} {[%emt 00:00:08]} Kf3
{[%clk 00:00:19]} {[%emt 00:00:02]} 59. Nc7 {[%clk 00:00:18]} {[%emt 00:00:02]}
Ra1 {[%clk 00:00:18]} {[%emt 00:00:05]} 0-1

[Event "Pervenstvo PFO 2023_Y19_Rapid"]
[Site "Samara region, Russia"]
[Date "2023.11.11"]
[Round "6.5"]
[White "Siyalov, Mikhail"]
[Black "Babkov, Timofey"]
[Result "1/2-1/2"]
[TimeControl "10:5"]
[WhiteFideId "24276359"]
[BlackFideId "54135931"]
[WhiteElo "1691"]
[BlackElo "1855"]

1. e4 {[%clk 00:10:02]} {[%emt 00:00:08]} c5 {[%clk 00:09:42]} {[%emt
00:00:29]} 2. Nf3 {[%clk 00:10:04]} {[%emt 00:00:02]} e6 {[%clk 00:09:46]}
{[%emt 00:00:01]} 3. d4 {[%clk 00:10:08]} cxd4 {[%clk 00:09:51]} 4. Nxd4 {[%clk
00:10:11]} {[%emt 00:00:02]} a6 {[%clk 00:09:55]} {[%emt 00:00:01]} 5. c4
{[%clk 00:10:15]} {[%emt 00:00:01]} Nf6 {[%clk 00:09:56]} {[%emt 00:00:04]} 6.
Nc3 {[%clk 00:10:13]} {[%emt 00:00:07]} Qc7 {[%clk 00:10:00]} 7. Be3 {[%clk
00:10:07]} {[%emt 00:00:11]} Bb4 {[%clk 00:10:02]} {[%emt 00:00:02]} 8. f3
{[%clk 00:09:04]} {[%emt 00:01:08]} d5 {[%clk 00:10:02]} {[%emt 00:00:05]} 9.
exd5 {[%clk 00:08:35]} {[%emt 00:00:34]} exd5 {[%clk 00:10:06]} {[%emt
00:00:01]} 10. Qb3 {[%clk 00:08:22]} {[%emt 00:00:18]} Bxc3+ {[%clk 00:07:31]}
{[%emt 00:02:40]} 11. Qxc3 {[%clk 00:08:22]} {[%emt 00:00:05]} O-O {[%clk
00:07:30]} {[%emt 00:00:06]} 12. cxd5 {[%clk 00:07:01]} {[%emt 00:01:26]} Qxc3+
{[%clk 00:07:33]} {[%emt 00:00:02]} 13. bxc3 {[%clk 00:07:05]} {[%emt
00:00:01]} Nxd5 {[%clk 00:07:37]} {[%emt 00:00:02]} 14. Bd2 {[%clk 00:07:08]}
{[%emt 00:00:01]} Re8+ {[%clk 00:07:01]} {[%emt 00:00:41]} 15. Kf2 {[%clk
00:07:09]} {[%emt 00:00:03]} Nc6 {[%clk 00:06:39]} {[%emt 00:00:27]} 16. Nxc6
{[%clk 00:06:27]} {[%emt 00:00:47]} bxc6 {[%clk 00:06:43]} {[%emt 00:00:01]} 17.
Bc4 {[%clk 00:06:19]} {[%emt 00:00:14]} Bf5 {[%clk 00:06:42]} {[%emt 00:00:05]}
18. Rhe1 {[%clk 00:05:06]} {[%emt 00:01:18]} Kf8 {[%clk 00:06:14]} {[%emt
00:00:34]} 19. Rxe8+ {[%clk 00:03:56]} {[%emt 00:01:15]} Rxe8 {[%clk 00:06:17]}
{[%emt 00:00:01]} 20. Bxa6 {[%clk 00:02:25]} {[%emt 00:01:37]} Rb8 {[%clk
00:06:14]} {[%emt 00:00:07]} 21. Kg3 {[%clk 00:01:39]} {[%emt 00:00:52]} Rb2
{[%clk 00:06:06]} {[%emt 00:00:12]} 22. Bc1 {[%clk 00:01:38]} {[%emt 00:00:06]}
Rc2 {[%clk 00:06:02]} {[%emt 00:00:09]} 23. c4 {[%clk 00:01:30]} {[%emt
00:00:14]} Nb6 {[%clk 00:06:05]} 24. Ba3+ {[%clk 00:00:34]} {[%emt 00:01:02]}
Ke8 {[%clk 00:05:57]} {[%emt 00:00:13]} 25. Bc1 {[%clk 00:00:07]} {[%emt
00:00:33]} Nxc4 {[%clk 00:05:17]} {[%emt 00:00:45]} 26. Bxc4 {[%clk 00:00:11]}
{[%emt 00:00:01]} Rxc4 {[%clk 00:05:21]} 27. a4 {[%clk 00:00:14]} {[%emt
00:00:02]} Bc8 {[%clk 00:05:20]} {[%emt 00:00:06]} 28. Be3 {[%clk 00:00:10]}
{[%emt 00:00:08]} Ba6 {[%clk 00:05:17]} {[%emt 00:00:08]} 29. Rc1 {[%clk
00:00:12]} {[%emt 00:00:04]} Rxc1 {[%clk 00:05:11]} {[%emt 00:00:12]} 30. Bxc1
{[%clk 00:00:15]} Ke7 {[%clk 00:05:12]} {[%emt 00:00:04]} 31. Kf4 {[%clk
00:00:11]} {[%emt 00:00:09]} Kd6 {[%clk 00:05:16]} 32. Ke4 {[%clk 00:00:08]}
{[%emt 00:00:08]} f6 {[%clk 00:04:43]} {[%emt 00:00:38]} 33. Ba3+ {[%clk
00:00:10]} {[%emt 00:00:04]} c5 {[%clk 00:04:47]} 34. g3 {[%clk 00:00:09]}
{[%emt 00:00:06]} Bb7+ {[%clk 00:04:45]} {[%emt 00:00:07]} 35. Ke3 {[%clk
00:00:12]} Kd5 {[%clk 00:04:46]} {[%emt 00:00:04]} 36. Kd3 {[%clk 00:00:10]}
{[%emt 00:00:07]} Ba6+ {[%clk 00:04:42]} {[%emt 00:00:09]} 37. Kc3 {[%clk
00:00:11]} {[%emt 00:00:03]} Be2 {[%clk 00:04:28]} {[%emt 00:00:19]} 38. f4
{[%clk 00:00:11]} {[%emt 00:00:05]} f5 {[%clk 00:04:22]} {[%emt 00:00:12]} 39.
Kd2 {[%clk 00:00:11]} {[%emt 00:00:05]} Ba6 {[%clk 00:04:25]} {[%emt 00:00:02]}
40. Kc3 {[%clk 00:00:15]} {[%emt 00:00:01]} g6 {[%clk 00:04:29]} {[%emt
00:00:01]} 41. a5 {[%clk 00:00:07]} {[%emt 00:00:13]} h5 {[%clk 00:04:29]}
{[%emt 00:00:05]} 42. h4 {[%clk 00:00:08]} {[%emt 00:00:04]} Kc6 {[%clk
00:04:11]} {[%emt 00:00:22]} 43. Bc1 {[%clk 00:00:08]} {[%emt 00:00:06]} Kb5
{[%clk 00:04:11]} {[%emt 00:00:04]} 44. Be3 {[%clk 00:00:10]} {[%emt 00:00:04]}
Kc6 {[%clk 00:03:36]} {[%emt 00:00:40]} 45. Bf2 {[%clk 00:00:09]} {[%emt
00:00:06]} Kd5 {[%clk 00:03:39]} 46. Bg1 {[%clk 00:00:12]} {[%emt 00:00:02]} c4
{[%clk 00:03:38]} {[%emt 00:00:07]} 47. Bd4 {[%clk 00:00:16]} Ke4 {[%clk
00:03:41]} {[%emt 00:00:01]} 48. Bf6 {[%clk 00:00:20]} {[%emt 00:00:01]} Kf3
{[%clk 00:03:43]} {[%emt 00:00:04]} 49. Kd4 {[%clk 00:00:20]} {[%emt 00:00:05]}
Kxg3 {[%clk 00:03:44]} {[%emt 00:00:04]} 50. Bg5 {[%clk 00:00:23]} Kf3 {[%clk
00:03:43]} {[%emt 00:00:06]} 51. Kc3 {[%clk 00:00:27]} {[%emt 00:00:02]} Ke4
{[%clk 00:03:44]} {[%emt 00:00:04]} 52. Bh6 {[%clk 00:00:30]} {[%emt 00:00:02]}
Kd5 {[%clk 00:03:48]} {[%emt 00:00:01]} 53. Bg5 {[%clk 00:00:34]} Kc5 {[%clk
00:03:52]} {[%emt 00:00:01]} 54. Bh6 {[%clk 00:00:37]} {[%emt 00:00:01]} Kb5
{[%clk 00:03:56]} 55. Bg5 {[%clk 00:00:41]} Kxa5 {[%clk 00:03:56]} {[%emt
00:00:05]} 56. Bh6 {[%clk 00:00:44]} {[%emt 00:00:02]} Kb5 {[%clk 00:04:01]} 57.
Bg5 {[%clk 00:00:48]} {[%emt 00:00:02]} Kc6 {[%clk 00:04:05]} 58. Bh6 {[%emt
00:00:02]} Kd5 59. Bg5 {[%clk 00:00:55]} Ke4 {[%clk 00:03:59]} {[%emt
00:00:16]} 60. Bh6 {[%clk 00:00:59]} {[%emt 00:00:02]} Kf3 {[%clk 00:04:03]} 61.
Bg5 {[%clk 00:01:01]} {[%emt 00:00:02]} Kg4 {[%clk 00:04:08]} {[%emt 00:00:01]}
62. Kd4 {[%clk 00:01:05]} Kg3 {[%clk 00:03:50]} {[%emt 00:00:23]} 63. Kc3
{[%clk 00:01:07]} {[%emt 00:00:02]} Kh3 {[%clk 00:03:54]} {[%emt 00:00:01]} 64.
Bf6 {[%clk 00:01:10]} {[%emt 00:00:02]} Kg4 {[%clk 00:03:58]} {[%emt 00:00:02]}
65. Bg5 {[%clk 00:01:14]} {[%emt 00:00:01]} Kg3 {[%clk 00:04:02]} 66. Kd4
{[%clk 00:01:18]} {[%emt 00:00:02]} Kf3 {[%clk 00:04:06]} 67. Kc3 {[%clk
00:01:22]} {[%emt 00:00:01]} Ke2 {[%clk 00:04:09]} {[%emt 00:00:01]} 68. Bf6
{[%clk 00:01:24]} {[%emt 00:00:03]} Ke3 {[%clk 00:04:14]} 69. Bg5 {[%clk
00:01:28]} Ke4 {[%clk 00:04:18]} 70. Bh6 {[%clk 00:01:31]} {[%emt 00:00:02]}
Ke5 {[%emt 00:00:25]} 1/2-1/2